bitfinex-derivatives/quotes_BTCF0:USTF0_20251023
["timestamp","ask_amount","ask_price","bid_price","bid_amount"]
[1761256367868,0.11692205,109640.0,109630.0,0.61678092]
[1761256368367,0.08417833,109640.0,109630.0,0.61678092]
[1761256371868,0.05962,109640.0,109630.0,0.78157134]
[1761256372064,0.05962,109640.0,109630.0,0.61678092]
[1761256372272,0.05962,109640.0,109630.0,0.78157134]
[1761256375771,0.05962,109640.0,109630.0,0.61678092]
[1761256377271,0.0158,109640.0,109630.0,0.78157134]
[1761256380476,0.03688,109640.0,109630.0,0.78157134]
[1761256381475,0.05918,109640.0,109630.0,0.78157134]
[1761256382776,0.05918,109640.0,109630.0,0.42077134]
[1761256382971,0.05918,109640.0,109630.0,0.78157134]
[1761256383876,0.0158,109640.0,109630.0,1.18157134]
[1761256384870,0.03688,109640.0,109630.0,1.18157134]
[1761256385070,0.05918,109640.0,109630.0,1.18157134]
[1761256386268,0.003,109640.0,109630.0,1.34636176]
[1761256386477,0.003,109640.0,109630.0,1.18157134]
[1761256389680,0.003,109640.0,109630.0,0.78157134]
[1761256389883,0.003,109640.0,109630.0,1.18157134]
[1761256390081,0.003,109640.0,109630.0,0.78157134]
[1761256391679,0.003,109640.0,109630.0,0.84666094]
[1761256393386,0.003,109640.0,109630.0,0.48586094]
[1761256393580,0.003,109640.0,109630.0,1.20746094]
[1761256400186,0.003,109640.0,109630.0,1.14237134]
[1761256403794,0.003,109640.0,109630.0,1.20746094]
[1761256404797,0.001,109640.0,109630.0,1.20746094]
[1761256404998,0.001,109640.0,109630.0,1.21046094]
[1761256405596,0.0577,109650.0,109630.0,1.30265144]
[1761256405794,0.0577,109650.0,109640.0,1.01146084]
[1761256406093,0.0577,109650.0,109640.0,1.10264274]
[1761256406395,0.0577,109650.0,109640.0,1.46344274]
[1761256406699,0.0577,109650.0,109640.0,1.29851842]
[1761256407504,0.0577,109650.0,109640.0,1.30051842]
[1761256410499,0.0577,109650.0,109640.0,1.37266036]
[1761256413101,0.0577,109650.0,109640.0,1.43774996]
[1761256416004,0.0577,109650.0,109640.0,1.37266036]
[1761256416305,0.0577,109650.0,109640.0,1.43774996]
[1761256416998,0.0577,109650.0,109640.0,1.27309344]
[1761256417205,0.0577,109650.0,109640.0,1.43774996]
[1761256418205,0.03559,109650.0,109640.0,1.43774996]
[1761256418406,0.01305,109650.0,109640.0,1.43874996]
[1761256418601,0.01305,109650.0,109640.0,1.43674996]
[1761256418805,0.03433,109650.0,109640.0,1.43974996]
[1761256419707,0.05588,109650.0,109640.0,1.43974996]
[1761256420509,0.05588,109650.0,109640.0,1.27509344]
[1761256420807,0.05588,109650.0,109640.0,1.43974996]
[1761256423507,0.03433,109650.0,109640.0,1.43974996]
[1761256423714,0.05588,109650.0,109640.0,1.43974996]
[1761256423904,0.05588,109650.0,109640.0,1.27509344]
[1761256424107,0.05588,109650.0,109640.0,1.43974996]
[1761256426312,0.03433,109650.0,109640.0,1.43974996]
[1761256427308,0.05588,109650.0,109640.0,1.43974996]
[1761256436019,0.03433,109650.0,109640.0,1.43974996]
[1761256436611,0.057,109650.0,109640.0,1.43974996]
[1761256437715,0.057,109650.0,109640.0,0.71814996]
[1761256437919,0.057,109650.0,109640.0,1.43974996]
[1761256444023,0.057,109650.0,109640.0,1.27509344]
[1761256444224,0.057,109650.0,109640.0,1.43974996]
[1761256445426,0.03433,109650.0,109640.0,1.43974996]
[1761256445618,0.03461,109650.0,109640.0,1.43974996]
[1761256445810,0.05728,109650.0,109640.0,1.43974996]
[1761256466738,0.05728,109650.0,109640.0,1.60443918]
[1761256476947,0.62195287,109650.0,109640.0,0.7906896]
[1761256477146,0.62195287,109650.0,109620.0,0.16467287]
[1761256477147,0.1510498,109630.0,109620.0,0.16467287]
[1761256477347,0.67652267,109630.0,109620.0,0.48551287]
[1761256477548,0.69941046,109630.0,109620.0,0.48551287]
[1761256478748,0.53473759,109630.0,109620.0,0.48551287]
[1761256478949,0.69941046,109630.0,109620.0,0.48551287]
[1761256479544,0.53473759,109630.0,109620.0,0.48551287]
[1761256480047,0.69941046,109630.0,109620.0,0.48551287]
[1761256480257,0.67652267,109630.0,109620.0,0.48551287]
[1761256481646,0.5118498,109630.0,109620.0,0.48551287]
[1761256481850,0.5118498,109630.0,109620.0,0.57671097]
[1761256485250,0.5118498,109630.0,109620.0,0.48551287]
[1761256486853,0.67652267,109630.0,109620.0,0.48551287]
[1761256487260,1.07652267,109630.0,109620.0,0.48551287]
[1761256487753,0.93452934,109630.0,109620.0,0.48551287]
[1761256488054,0.93452934,109630.0,109620.0,0.57671077]
[1761256490847,0.57372934,109630.0,109620.0,0.57671077]
[1761256491054,0.93452934,109630.0,109620.0,0.57671077]
[1761256493555,0.05986,109630.0,109620.0,0.74138364]
[1761256493852,0.05813,109630.0,109620.0,0.74138364]
[1761256494550,0.05813,109630.0,109620.0,0.4120379]
[1761256494748,0.05813,109630.0,109620.0,1.10218364]
[1761256495356,0.05813,109630.0,109620.0,1.10318364]
[1761256496060,0.05813,109630.0,109620.0,0.3604762]
[1761256496252,0.1469429,109590.0,109580.0,0.00456267]
[1761256496448,0.1469513,109580.0,109570.0,0.52547287]
[1761256496644,0.1469596,109570.0,109560.0,0.52547287]
[1761256496850,0.1469596,109570.0,109560.0,0.84739287]
[1761256497051,0.1469591,109570.0,109560.0,1.02107395]
[1761256498355,0.1469591,109570.0,109560.0,1.02207395]
[1761256498864,0.1479591,109570.0,109560.0,1.02207395]
[1761256499155,0.1479591,109570.0,109560.0,0.17468108]
[1761256499457,0.5077591,109570.0,109560.0,0.17468108]
[1761256499657,0.67243197,109570.0,109560.0,0.00900821]
[1761256499853,0.67243197,109570.0,109560.0,0.32188]
[1761256500644,0.67343197,109570.0,109560.0,0.32188]
[1761256501059,0.1469673,109560.0,109550.0,0.52556847]
[1761256501261,0.1469673,109560.0,109550.0,0.8565741]
[1761256502458,0.5077673,109560.0,109550.0,0.1738541]
[1761256502659,0.5077673,109560.0,109550.0,0.4957741]
[1761256502956,0.5077673,109560.0,109550.0,0.1738541]
[1761256503160,0.5077673,109560.0,109550.0,0.4957341]
[1761256505966,0.1469673,109560.0,109550.0,0.8565341]
[1761256506963,0.1469673,109560.0,109550.0,0.36998123]
[1761256507263,0.5077673,109560.0,109550.0,0.4956941]
[1761256507463,0.5077673,109560.0,109550.0,0.1738541]
[1761256507664,0.67244017,109560.0,109550.0,0.00918123]
[1761256507961,0.67244017,109560.0,109550.0,0.33102123]
[1761256508166,0.67244017,109560.0,109550.0,0.00918123]
[1761256508363,0.67244017,109560.0,109550.0,0.33110123]
[1761256508668,0.67244017,109560.0,109550.0,0.00918123]
[1761256508857,0.67244017,109560.0,109550.0,0.33110123]
[1761256509165,0.67244017,109560.0,109550.0,0.33106123]
[1761256510758,0.67244017,109560.0,109550.0,0.3219756]
[1761256514465,0.67244017,109560.0,109550.0,0.3219356]
[1761256516572,0.67244017,109560.0,109550.0,0.3218956]
[1761256516770,0.5077673,109560.0,109550.0,0.57782417]
[1761256517673,0.1469673,109560.0,109550.0,0.57782417]
[1761256518960,0.1469673,109560.0,109550.0,1.10329704]
[1761256518961,0.03437,109560.0,109550.0,1.10329704]
[1761256519162,0.01276,109560.0,109550.0,1.10329704]
[1761256519976,0.05572,109560.0,109550.0,1.10329704]
[1761256520171,0.03437,109560.0,109550.0,1.10329704]
[1761256521279,0.03437,109560.0,109550.0,1.10429704]
[1761256525682,0.05652,109560.0,109550.0,1.10429704]
[1761256526071,0.04168841,109560.0,109550.0,1.10429704]
[1761256526271,0.05462841,109560.0,109550.0,1.10429704]
[1761256526871,0.03247841,109560.0,109550.0,1.10429704]
[1761256527480,0.01294,109560.0,109550.0,1.10429704]
[1761256527687,0.05732,109560.0,109550.0,1.10429704]
[1761256528690,0.05714,109570.0,109560.0,0.0912474]
[1761256528990,0.05714,109570.0,109560.0,0.61696236]
[1761256534690,0.05714,109570.0,109560.0,0.25616236]
[1761256534890,0.05714,109570.0,109560.0,0.61696236]
[1761256537396,0.05714,109570.0,109560.0,0.25616236]
[1761256537587,0.05714,109570.0,109560.0,0.61696236]
[1761256542292,0.05714,109570.0,109560.0,0.25616236]
[1761256542494,0.05714,109570.0,109560.0,0.61696236]
[1761256549001,0.08204832,109580.0,109570.0,0.091239]
[1761256549189,0.0345,109580.0,109570.0,0.93831396]
[1761256549392,0.05714,109580.0,109570.0,0.93831396]
[1761256550502,0.05914,109580.0,109570.0,0.93831396]
[1761256550703,0.05914,109580.0,109570.0,0.61695396]
[1761256550905,0.05914,109580.0,109570.0,0.93843396]
[1761256551702,0.05714,109580.0,109570.0,0.93843396]
[1761256552001,0.05714,109580.0,109570.0,0.94143396]
[1761256556699,0.05714,109580.0,109570.0,0.58063396]
[1761256556898,0.03403,109580.0,109570.0,0.94143396]
[1761256557102,0.0562,109580.0,109570.0,0.94143396]
[1761256562905,0.01276,109580.0,109570.0,0.94143396]
[1761256563110,0.0562,109580.0,109570.0,0.94143396]
[1761256568417,0.0562,109580.0,109570.0,0.94143396]
[1761256569414,0.0562,109580.0,109570.0,0.58063396]
[1761256569713,0.0562,109580.0,109570.0,0.94143396]
[1761256575215,0.0562,109580.0,109570.0,1.00681078]
[1761256578217,0.0562,109580.0,109570.0,1.00805698]
[1761256583114,0.0562,109580.0,109570.0,0.68657698]
[1761256583320,0.0562,109580.0,109570.0,1.00765698]
[1761256584924,0.0562,109580.0,109570.0,0.68657698]
[1761256585122,0.0562,109580.0,109570.0,1.00665698]
[1761256585322,0.0562,109580.0,109570.0,0.68657698]
[1761256585521,0.0562,109580.0,109570.0,1.00765698]
[1761256585924,0.0562,109580.0,109570.0,1.00565698]
[1761256586126,0.0562,109580.0,109570.0,1.00765698]
[1761256587129,0.0562,109580.0,109570.0,0.68657698]
[1761256587424,0.0562,109580.0,109570.0,1.00765698]
[1761256588329,0.0562,109580.0,109570.0,0.64685698]
[1761256588529,0.0562,109580.0,109570.0,1.36845698]
[1761256588826,0.0562,109580.0,109570.0,1.36842522]
[1761256589822,0.05830979,109590.0,109580.0,0.0912308]
[1761256590022,0.05772,109590.0,109580.0,0.616914]
[1761256590221,0.05772,109590.0,109580.0,0.6181602]
[1761256590726,0.05772,109590.0,109580.0,0.9392402]
[1761256591228,0.05772,109590.0,109580.0,0.9412402]
[1761256596035,0.05772,109590.0,109580.0,0.5804402]
[1761256596437,0.05772,109590.0,109580.0,0.9412402]
[1761256601049,0.2226032,109590.0,109580.0,0.776357]
[1761256601252,0.24569299,109590.0,109580.0,0.9412402]
[1761256602651,0.24569098,109590.0,109580.0,0.9412402]
[1761256604658,0.24569098,109590.0,109580.0,0.6201602]
[1761256604849,0.24569098,109590.0,109580.0,0.9412402]
[1761256605955,0.24569098,109590.0,109580.0,0.6201602]
[1761256606153,0.24569098,109590.0,109580.0,0.9412402]
[1761256609659,0.24569098,109590.0,109580.0,0.6201602]
[1761256609853,0.24569098,109590.0,109580.0,0.9412402]
[1761256610053,0.08080778,109590.0,109580.0,0.9412402]
[1761256610356,0.05772,109590.0,109580.0,0.5804402]
[1761256613460,0.05772,109590.0,109580.0,0.2593602]
[1761256613661,0.2226032,109590.0,109580.0,0.5804002]
[1761256613958,0.24569098,109590.0,109580.0,0.5804002]
[1761256614464,0.08080778,109590.0,109580.0,0.5804002]
[1761256614657,0.05772,109590.0,109580.0,0.5804002]
[1761256615365,0.6226032,109590.0,109580.0,0.415517]
[1761256615554,0.64569098,109590.0,109580.0,0.415517]
[1761256616259,0.64569098,109590.0,109580.0,0.094477]
[1761256616467,0.64569098,109590.0,109580.0,0.415517]
[1761256617350,0.64569098,109590.0,109580.0,0.094477]
[1761256617554,0.64569098,109590.0,109580.0,0.415517]
[1761256619461,0.64569098,109590.0,109580.0,0.0032462]
[1761256619761,1.28721532,109590.0,109580.0,0.3242862]
[1761256620151,1.28721532,109590.0,109580.0,0.0032462]
[1761256620356,1.28721532,109590.0,109580.0,0.3242862]
[1761256620561,1.31985075,109590.0,109580.0,0.3242862]
[1761256620761,1.29523231,109590.0,109580.0,0.3242862]
[1761256622167,1.3198077,109590.0,109580.0,0.0032462]
[1761256622367,1.3198077,109590.0,109580.0,0.3242862]
[1761256622661,0.03629,109570.0,109560.0,0.0912417]
[1761256622862,0.2232432,109570.0,109560.0,0.4122817]
[1761256623060,0.24633098,109570.0,109560.0,0.4122817]
[1761256623258,0.60713098,109570.0,109560.0,0.4123217]
[1761256623458,1.00713098,109570.0,109560.0,0.4123217]
[1761256623655,1.00713098,109570.0,109560.0,0.0912417]
[1761256623859,1.00713098,109570.0,109560.0,0.4122817]
[1761256624171,1.00713098,109570.0,109560.0,0.0912417]
[1761256624369,1.00713098,109570.0,109560.0,0.4122817]
[1761256624764,0.05836,109560.0,109550.0,1.0222661]
[1761256624963,0.2232432,109560.0,109550.0,1.3433461]
[1761256625160,0.24633098,109560.0,109550.0,1.0222661]
[1761256625362,1.17201418,109560.0,109550.0,0.9310156]
[1761256625661,1.19659149,109560.0,109550.0,0.9310156]
[1761256625855,1.19659149,109560.0,109550.0,1.2520956]
[1761256626061,1.17201418,109560.0,109550.0,1.2520956]
[1761256626366,1.19659149,109560.0,109550.0,1.2520956]
[1761256626966,1.19759149,109560.0,109550.0,0.9310156]
[1761256627866,1.19759149,109560.0,109550.0,1.2520956]
[1761256628171,1.20681678,109560.0,109550.0,1.2520956]
[1761256628770,1.20681678,109560.0,109550.0,0.9310156]
[1761256628965,1.20681678,109560.0,109550.0,1.2520956]
[1761256629367,1.18223947,109560.0,109550.0,1.2520956]
[1761256629666,1.18223947,109560.0,109550.0,1.2521356]
[1761256629858,0.78223947,109560.0,109550.0,1.2521356]
[1761256630062,0.78223947,109560.0,109550.0,0.9310156]
[1761256630265,0.78223947,109560.0,109550.0,1.2520956]
[1761256630863,0.78223947,109560.0,109550.0,1.2521356]
[1761256631264,0.87348777,109560.0,109550.0,1.2521356]
[1761256631677,0.87348777,109560.0,109550.0,0.9310156]
[1761256631969,0.87348777,109560.0,109550.0,1.2521356]
[1761256633170,0.87348777,109560.0,109550.0,0.9310156]
[1761256633373,0.87348777,109560.0,109550.0,1.2521356]
[1761256634175,0.87348777,109560.0,109550.0,0.9310156]
[1761256634366,0.87348777,109560.0,109550.0,1.2521356]
[1761256635066,1.27348777,109560.0,109550.0,0.93092]
[1761256635273,0.1496164,109550.0,109540.0,0.00456433]
[1761256635473,0.6752996,109550.0,109540.0,0.32568433]
[1761256635673,0.69838738,109550.0,109540.0,0.00456433]
[1761256635871,0.86327058,109550.0,109540.0,0.32568433]
[1761256636071,0.69838738,109550.0,109540.0,0.32568433]
[1761256636268,0.69845399,109550.0,109540.0,0.32568433]
[1761256637070,0.69945399,109550.0,109540.0,0.32568433]
[1761256638172,0.69945399,109550.0,109540.0,0.00456433]
[1761256638366,0.69945399,109550.0,109540.0,0.32572433]
[1761256638674,0.86433719,109550.0,109540.0,0.00456433]
[1761256638875,1.26433719,109550.0,109540.0,0.32572433]
[1761256639064,0.44331439,109550.0,109540.0,0.58187253]
[1761256639264,0.58510981,109550.0,109540.0,0.41698933]
[1761256640169,0.6080091,109550.0,109540.0,0.41698933]
[1761256642180,0.6080091,109550.0,109540.0,0.09582933]
[1761256642372,0.4431259,109550.0,109540.0,0.58187253]
[1761256642573,0.6080091,109550.0,109540.0,0.58187253]
[1761256642979,0.4431259,109550.0,109540.0,0.58187253]
[1761256643680,0.6080091,109550.0,109540.0,0.58187253]
[1761256644080,0.0602559,109550.0,109540.0,0.58187253]
[1761256644285,0.05947661,109550.0,109540.0,0.58187253]
[1761256646984,0.22435981,109550.0,109540.0,0.58187253]
[1761256647183,0.2472591,109550.0,109540.0,0.58187253]
[1761256648690,0.0823759,109550.0,109540.0,0.41698933]
[1761256648981,0.05947661,109550.0,109540.0,0.41698933]
[1761256652492,0.08405392,109550.0,109540.0,0.41698933]
[1761256657082,0.03948392,109550.0,109540.0,0.41698933]
[1761256657389,0.00106661,109550.0,109540.0,1.34278959]
[1761256659190,6.661e-05,109550.0,109540.0,1.34378959]
[1761256671801,0.05837073,109570.0,109560.0,0.0912484]
[1761256672001,0.03535,109570.0,109560.0,0.93812866]
[1761256672198,0.01384,109570.0,109560.0,0.93812866]
[1761256672801,0.05726,109570.0,109560.0,0.7731284]
[1761256673602,0.05726,109570.0,109560.0,0.93812866]
[1761256673998,0.05926,109570.0,109560.0,0.93812866]
[1761256674703,0.05926,109570.0,109560.0,0.93812866]
[1761256674900,0.05726,109570.0,109560.0,0.93812866]
[1761256678715,0.05726,109570.0,109560.0,0.57732866]
[1761256679006,0.05726,109570.0,109560.0,0.93812866]
[1761256683507,0.05726,109570.0,109560.0,0.57728866]
[1761256683705,0.05726,109570.0,109560.0,0.7730884]
[1761256683908,0.05726,109570.0,109560.0,0.93808866]
[1761256684406,0.05726,109570.0,109560.0,0.7730884]
[1761256684602,0.05726,109570.0,109560.0,0.4520484]
[1761256684802,0.05726,109570.0,109560.0,0.7730884]
[1761256685116,0.05726,109570.0,109560.0,0.4122884]
[1761256688607,0.05726,109570.0,109560.0,0.0912484]
[1761256688809,0.05726,109570.0,109560.0,0.7730484]
[1761256689214,0.01384,109570.0,109560.0,0.93804866]
[1761256689412,0.08467381,109580.0,109570.0,0.0912399]
[1761256689715,0.08339308,109580.0,109570.0,0.0912399]
[1761256690615,0.08539308,109580.0,109570.0,0.0912399]
[1761256692617,0.06086,109580.0,109570.0,0.0912399]
[1761256694214,0.1520916,109580.0,109570.0,0.0912399]
[1761256694613,0.1520916,109580.0,109570.0,0.10014238]
[1761256696615,0.1500916,109580.0,109570.0,0.10014238]
[1761256697116,0.5108916,109580.0,109570.0,0.42114238]
[1761256697316,0.53391233,109580.0,109570.0,0.42114238]
[1761256698717,0.17311233,109580.0,109570.0,0.42114238]
[1761256698914,0.5108916,109580.0,109570.0,0.42114238]
[1761256699115,0.55844541,109580.0,109570.0,0.42114238]
[1761256705817,0.55844541,109580.0,109570.0,0.10014238]
[1761256706025,0.55844541,109580.0,109570.0,0.42114238]
[1761256708731,0.72337131,109580.0,109570.0,0.58606828]
[1761256709528,0.72337131,109580.0,109570.0,0.58602828]
[1761256711333,0.72337131,109580.0,109570.0,0.10014238]
[1761256711526,0.72337131,109580.0,109570.0,0.58602828]
[1761256712132,0.72337131,109580.0,109570.0,0.42110238]
[1761256715033,0.72337131,109580.0,109570.0,0.0912399]
[1761256715236,0.72337131,109580.0,109570.0,0.4121999]
[1761256715435,0.88829721,109580.0,109570.0,0.4121999]
[1761256716136,0.88829721,109580.0,109570.0,0.42130039]
[1761256716335,0.88829721,109580.0,109570.0,0.4121999]
[1761256717938,0.88829721,109580.0,109570.0,0.0912399]
[1761256718139,0.88829721,109580.0,109570.0,0.4121999]
[1761256720143,0.88829721,109580.0,109570.0,0.0912399]
[1761256720342,0.88829721,109580.0,109570.0,0.4121999]
[1761256722142,0.55844541,109580.0,109570.0,0.4121999]
[1761256722342,0.88829721,109580.0,109570.0,0.4121999]
[1761256722544,0.75600674,109580.0,109570.0,0.4121999]
[1761256724044,0.75600674,109580.0,109570.0,0.0912399]
[1761256724045,0.92093264,109580.0,109570.0,0.0912399]
[1761256724240,0.1514499,109570.0,109560.0,0.26510412]
[1761256724442,0.6771758,109570.0,109560.0,0.42109822]
[1761256724643,0.70019653,109570.0,109560.0,0.42109822]
[1761256725043,0.70019653,109570.0,109560.0,0.58602412]
[1761256725846,0.24815663,109570.0,109560.0,0.58602412]
[1761256726549,0.33939663,109570.0,109560.0,0.58602412]
[1761256726748,0.33939663,109570.0,109560.0,0.10017822]
[1761256727046,0.70019663,109570.0,109560.0,0.42109822]
[1761256727547,0.70019663,109570.0,109560.0,0.0912426]
[1761256727758,0.1514583,109560.0,109550.0,0.0912497]
[1761256728049,0.3163842,109560.0,109550.0,0.4121697]
[1761256728245,0.33940493,109560.0,109550.0,0.4121697]
[1761256729353,0.33940493,109560.0,109550.0,0.0912497]
[1761256729543,0.50433083,109560.0,109550.0,0.4141697]
[1761256730150,0.33940493,109560.0,109550.0,0.4141697]
[1761256730863,0.33940493,109560.0,109550.0,0.0932497]
[1761256731157,0.33940493,109560.0,109550.0,0.4141697]
[1761256732552,0.33934809,109560.0,109550.0,0.4141697]
[1761256732851,0.70014809,109560.0,109550.0,0.0932497]
[1761256733050,0.70014809,109560.0,109550.0,0.4141697]
[1761256737361,0.53522219,109560.0,109550.0,0.5790956]
[1761256737857,0.01398,109560.0,109550.0,0.9398956]
[1761256738062,0.03714,109560.0,109550.0,0.9398956]
[1761256738562,0.05983,109560.0,109550.0,0.9398956]
[1761256741061,0.03714,109560.0,109550.0,0.9398956]
[1761256741262,0.05983,109560.0,109550.0,0.9398956]
[1761256743365,0.1510783,109560.0,109550.0,0.9398956]
[1761256743663,0.3160042,109560.0,109550.0,0.4540497]
[1761256743863,0.69975542,109560.0,109550.0,0.32292]
[1761256744663,0.86468132,109560.0,109550.0,0.002]
[1761256744865,0.86468132,109560.0,109550.0,0.00193339]
[1761256744866,1.26468132,109560.0,109550.0,0.00193339]
[1761256745168,1.32187446,109560.0,109550.0,0.32285339]
[1761256746167,1.32387446,109560.0,109550.0,0.32092]
[1761256746364,1.29123903,109560.0,109550.0,0.32092]
[1761256746965,0.1506166,109550.0,109540.0,0.00456433]
[1761256747266,0.6763425,109550.0,109540.0,0.32548433]
[1761256747457,0.69929372,109550.0,109540.0,0.32548433]
[1761256748369,0.69929372,109550.0,109540.0,0.41674923]
[1761256748770,0.70029372,109550.0,109540.0,0.41674923]
[1761256749366,0.70029372,109550.0,109540.0,0.09582923]
[1761256749670,0.70029372,109550.0,109540.0,0.41674923]
[1761256750371,0.70029372,109550.0,109540.0,0.32548433]
[1761256750869,0.70029372,109550.0,109540.0,0.00456433]
[1761256751072,0.53536782,109550.0,109540.0,0.41674923]
[1761256751269,0.70029372,109550.0,109540.0,0.41674923]
[1761256751969,0.08331122,109550.0,109540.0,0.74660103]
[1761256752270,0.06036,109550.0,109540.0,1.10740103]
[1761256753367,0.001,109550.0,109540.0,1.50740103]
[1761256753567,0.001,109550.0,109540.0,1.67232693]
[1761256753772,0.001,109550.0,109540.0,1.73770375]
[1761256753971,0.01398,109570.0,109560.0,0.0912482]
[1761256754171,0.03714,109570.0,109560.0,1.10282]
[1761256754368,0.05983,109570.0,109560.0,1.10282]
[1761256754969,0.42049,109580.0,109570.0,0.0912399]
[1761256755169,0.42049,109580.0,109570.0,0.4210917]
[1761256755370,0.05969,109580.0,109570.0,0.7818917]
[1761256760276,0.01351,109590.0,109580.0,0.0912316]
[1761256760478,0.03667,109590.0,109580.0,0.7419634]
[1761256760776,0.05936,109590.0,109580.0,0.7419634]
[1761256761581,0.06036,109590.0,109580.0,0.7419634]
[1761256764090,0.06036,109590.0,109580.0,0.75102696]
[1761256768382,0.05875,109590.0,109580.0,0.75102696]
[1761256768790,0.05875,109590.0,109580.0,0.58598585]
[1761256768985,0.1499733,109590.0,109580.0,0.58598585]
[1761256776090,0.1499733,109590.0,109580.0,0.17391425]
[1761256776298,0.1484416,109580.0,109570.0,0.0912399]
[1761256776598,0.5092416,109580.0,109570.0,0.57689059]
[1761256777800,0.05721,109570.0,109560.0,0.62614435]
[1761256778095,0.05721,109570.0,109560.0,0.94694435]
[1761256778286,0.05721,109570.0,109560.0,0.58614435]
[1761256779193,0.05721,109570.0,109560.0,0.94694435]
[1761256779500,0.05721,109570.0,109560.0,0.94794435]
[1761256779697,0.05721,109570.0,109560.0,0.62714435]
[1761256779896,0.05721,109570.0,109560.0,0.94794435]
[1761256783305,0.05721,109570.0,109560.0,0.58714435]
[1761256784203,0.05721,109570.0,109560.0,0.94694435]
[1761256784406,0.05721,109570.0,109560.0,0.62614435]
[1761256784600,0.05721,109570.0,109560.0,0.58614435]
[1761256785305,0.1484499,109570.0,109560.0,0.58614435]
[1761256787206,0.05721,109570.0,109560.0,0.94694435]
[1761256788404,0.05721,109570.0,109560.0,0.94794435]
[1761256788801,0.05721,109570.0,109560.0,0.94694435]
[1761256788998,0.05721,109570.0,109560.0,0.94794435]
[1761256790804,0.05721,109570.0,109560.0,0.94694435]
[1761256790999,0.05721,109570.0,109560.0,0.94794435]
[1761256792215,0.1484499,109570.0,109560.0,0.94794435]
[1761256793416,0.1484499,109570.0,109560.0,0.94694435]
[1761256793608,0.1484499,109570.0,109560.0,0.94794435]
[1761256793810,0.01288,109570.0,109560.0,1.11279504]
[1761256794021,0.01288,109580.0,109570.0,0.0912399]
[1761256794326,0.01288,109580.0,109570.0,0.61689059]
[1761256795520,0.1477433,109590.0,109580.0,0.0912316]
[1761256795723,0.1477433,109590.0,109580.0,0.57688229]
[1761256800332,0.1477433,109590.0,109580.0,0.48565069]
[1761256800527,0.5085433,109590.0,109580.0,0.3208]
[1761256800727,0.53145715,109590.0,109580.0,0.48565069]
[1761256801027,0.05599,109580.0,109570.0,0.3608]
[1761256801331,0.05599,109580.0,109550.0,0.0912546]
[1761256801332,0.05599,109560.0,109550.0,0.25609669]
[1761256801630,0.05599,109560.0,109550.0,0.93765669]
[1761256802325,0.05599,109560.0,109550.0,0.61689669]
[1761256802625,0.05599,109560.0,109550.0,0.93765669]
[1761256803330,0.05599,109560.0,109550.0,0.94786322]
[1761256803528,0.147232,109560.0,109550.0,0.94786322]
[1761256803728,0.05599,109560.0,109550.0,0.94786322]
[1761256805233,0.05599,109570.0,109560.0,0.091242]
[1761256805428,0.05599,109570.0,109560.0,0.78174338]
[1761256805632,0.03431,109570.0,109560.0,0.78174338]
[1761256805833,0.05599,109570.0,109560.0,0.78174338]
[1761256806230,0.03431,109570.0,109560.0,0.84729912]
[1761256806935,0.01298,109570.0,109560.0,0.84729912]
[1761256807429,0.01298,109570.0,109560.0,0.84829912]
[1761256807737,0.03431,109570.0,109560.0,0.84829912]
[1761256807929,0.05599,109570.0,109560.0,0.84729912]
[1761256808127,0.05599,109570.0,109560.0,0.84929912]
[1761256808529,0.1477373,109590.0,109580.0,0.0912254]
[1761256808728,0.1477373,109590.0,109580.0,0.57683609]
[1761256809427,0.1477373,109590.0,109580.0,0.93763609]
[1761256810134,0.05652,109590.0,109580.0,0.93763609]
[1761256813533,0.01351,109590.0,109580.0,0.93763609]
[1761256813738,0.05599,109600.0,109590.0,0.0912171]
[1761256813940,0.05599,109600.0,109590.0,0.78171848]
[1761256815127,0.05599,109600.0,109590.0,0.61686779]
[1761256815533,0.03431,109600.0,109590.0,0.78171848]
[1761256815843,0.03531,109600.0,109590.0,0.78171848]
[1761256817945,0.05699,109600.0,109590.0,0.78171848]
[1761256818137,0.05699,109600.0,109590.0,0.61686779]
[1761256818327,0.03531,109600.0,109590.0,0.61686779]
[1761256818535,0.001,109600.0,109590.0,0.78171848]
[1761256818844,0.03531,109600.0,109590.0,0.78171848]
[1761256819934,0.05699,109600.0,109590.0,0.78171848]
[1761256822142,0.05699,109600.0,109590.0,0.61686779]
[1761256822342,0.001,109600.0,109590.0,0.78171848]
[1761256826946,0.05921,109610.0,109600.0,0.0912088]
[1761256827137,0.05921,109610.0,109600.0,0.93753949]
[1761256827942,0.01298,109610.0,109600.0,0.94662858]
[1761256828145,0.03505,109610.0,109600.0,0.94662858]
[1761256828344,0.05813,109610.0,109600.0,0.94662858]
[1761256830749,0.05813,109610.0,109600.0,1.11134763]
[1761256831343,0.5378257,109630.0,109600.0,1.11134763]
[1761256831552,0.5378257,109630.0,109620.0,0.32956974]
[1761256831743,0.5378257,109630.0,109620.0,0.65024974]
[1761256832044,0.1770257,109630.0,109620.0,0.65024974]
[1761256832250,0.1541185,109630.0,109620.0,0.65024974]
[1761256833244,0.1571185,109630.0,109620.0,0.65024974]
[1761256833445,0.1581185,109630.0,109620.0,0.65024974]
[1761256837047,0.1581185,109630.0,109620.0,0.74144734]
[1761256844854,0.06693,109630.0,109620.0,0.74144734]
[1761256847258,0.06693,109630.0,109620.0,0.4118776]
[1761256847554,0.06693,109630.0,109620.0,0.74144734]
[1761256851256,0.06693,109630.0,109620.0,1.10224734]
[1761256853859,0.06513,109630.0,109620.0,1.10224734]
[1761256854158,0.06513,109630.0,109620.0,0.7726776]
[1761256854459,0.06513,109630.0,109620.0,1.10224734]
[1761256856161,0.04385,109630.0,109620.0,1.10224734]
[1761256856459,0.06513,109630.0,109620.0,1.10224734]
[1761256857762,0.02178,109630.0,109620.0,1.10224734]
[1761256858461,0.04358,109630.0,109620.0,1.10224734]
[1761256859861,0.02178,109630.0,109620.0,1.10224734]
[1761256860063,0.04358,109630.0,109620.0,1.10224734]
[1761256860961,0.0088,109630.0,109620.0,1.50224734]
[1761256861154,0.0088,109630.0,109620.0,1.66703221]
[1761256861355,0.05622,109650.0,109640.0,0.0911811]
[1761256861564,0.05622,109650.0,109640.0,1.10211084]
[1761256862063,0.05622,109650.0,109640.0,0.7725411]
[1761256862258,0.05622,109650.0,109640.0,1.10211084]
[1761256863156,0.05922,109650.0,109640.0,1.10211084]
[1761256864060,0.06022,109650.0,109640.0,1.10211084]
[1761256868766,0.004,109650.0,109640.0,1.10211084]
[1761256869665,0.03917,109650.0,109640.0,1.10211084]
[1761256870565,0.06045,109650.0,109640.0,1.10211084]
[1761256875362,0.01737,109650.0,109640.0,1.62769571]
[1761256875868,0.03917,109650.0,109640.0,1.46291084]